[Event "Late-Titled-Tuesday-Blitz-December-26-2023"]
[Site "Chess.com"]
[Date "2023.12.26"]
[Round "1"]
[White "rhungaski"]
[Black "Dewarfd"]
[Result "0-1"]
[WhiteElo "2474"]
[BlackElo "2123"]
[TimeControl "180+1"]
[EndTime "14:06:49 PST"]
[Termination "Dewarfd won on time"]

1. b3 {[%clk 0:02:42.7]} 1... e6 {[%clk 0:02:52.9]} 2. Bb2 {[%clk 0:02:41.8]}
2... d5 {[%clk 0:02:52.7]} 3. Nf3 {[%clk 0:02:41.2]} 3... c5 {[%clk 0:02:52.7]}
4. e3 {[%clk 0:02:40.4]} 4... Nf6 {[%clk 0:02:52.4]} 5. Ne5 {[%clk 0:02:13]}
5... Be7 {[%clk 0:02:45.1]} 6. Bb5+ {[%clk 0:02:11.5]} 6... Bd7 {[%clk
0:02:44.2]} 7. Nxd7 {[%clk 0:01:57.3]} 7... Nbxd7 {[%clk 0:02:44]} 8. f4 {[%clk
0:01:47.8]} 8... O-O {[%clk 0:02:42.9]} 9. O-O {[%clk 0:01:46.9]} 9... Ne4
{[%clk 0:02:27.1]} 10. d3 {[%clk 0:01:20.3]} 10... Nd6 {[%clk 0:02:09.1]} 11.
Bxd7 {[%clk 0:01:18.8]} 11... Qxd7 {[%clk 0:02:10]} 12. Qg4 {[%clk 0:01:17.6]}
12... f6 {[%clk 0:01:59.2]} 13. Nd2 {[%clk 0:01:13.8]} 13... Rf7 {[%clk
0:01:57.4]} 14. Rae1 {[%clk 0:01:11]} 14... f5 {[%clk 0:01:51.6]} 15. Qh3 {[%clk
0:01:01.7]} 15... Bf6 {[%clk 0:01:50.3]} 16. Be5 {[%clk 0:00:47.9]} 16... b5
{[%clk 0:01:19]} 17. Nf3 {[%clk 0:00:45]} 17... h6 {[%clk 0:00:59.6]} 18. g4
{[%clk 0:00:41.6]} 18... fxg4 {[%clk 0:00:40]} 19. Qxg4 {[%clk 0:00:42.5]} 19...
Nf5 {[%clk 0:00:09.6]} 0-1

[Event "Late-Titled-Tuesday-Blitz-December-26-2023"]
[Site "Chess.com"]
[Date "2023.12.26"]
[Round "1"]
[White "Flaccidmoves"]
[Black "Alexander_Khlebovich"]
[Result "0-1"]
[WhiteElo "2411"]
[BlackElo "2729"]
[TimeControl "180+1"]
[EndTime "14:06:53 PST"]
[Termination "Alexander_Khlebovich won by checkmate"]

1. c4 {[%clk 0:03:00.3]} 1... c5 {[%clk 0:02:56.4]} 2. g3 {[%clk 0:02:59.9]}
2... Nc6 {[%clk 0:02:56.6]} 3. Bg2 {[%clk 0:03:00.3]} 3... g6 {[%clk 0:02:57.1]}
4. Nf3 {[%clk 0:02:57.4]} 4... Bg7 {[%clk 0:02:57.4]} 5. O-O {[%clk 0:02:57]}
5... Nf6 {[%clk 0:02:57.4]} 6. d4 {[%clk 0:02:54.2]} 6... cxd4 {[%clk
0:02:58.3]} 7. Nxd4 {[%clk 0:02:54.8]} 7... O-O {[%clk 0:02:58.6]} 8. Nc3 {[%clk
0:02:53.5]} 8... Ng4 {[%clk 0:02:58.2]} 9. e3 {[%clk 0:02:41.3]} 9... d6 {[%clk
0:02:54.1]} 10. b3 {[%clk 0:02:31.2]} 10... Nxd4 {[%clk 0:02:46.8]} 11. exd4
{[%clk 0:02:31.1]} 11... Nh6 {[%clk 0:02:47.1]} 12. Re1 {[%clk 0:02:27]} 12...
Nf5 {[%clk 0:02:45.8]} 13. Ne2 {[%clk 0:02:21.3]} 13... Rb8 {[%clk 0:02:45.9]}
14. a4 {[%clk 0:02:18.3]} 14... b6 {[%clk 0:02:45.3]} 15. Bb2 {[%clk 0:02:16.8]}
15... Bb7 {[%clk 0:02:45.5]} 16. Qd2 {[%clk 0:02:14.1]} 16... Bxg2 {[%clk
0:02:44.4]} 17. Kxg2 {[%clk 0:02:15]} 17... d5 {[%clk 0:02:44.1]} 18. Rad1
{[%clk 0:02:06.6]} 18... dxc4 {[%clk 0:02:42.2]} 19. bxc4 {[%clk 0:02:06.4]}
19... Rc8 {[%clk 0:02:36.9]} 20. Qb4 {[%clk 0:01:54.6]} 20... Qd6 {[%clk
0:02:31.2]} 21. Qb5 {[%clk 0:01:42.5]} 21... Qc6+ {[%clk 0:02:22.3]} 22. Qxc6
{[%clk 0:01:36.9]} 22... Rxc6 {[%clk 0:02:23.2]} 23. Rc1 {[%clk 0:01:37.3]}
23... Rfc8 {[%clk 0:02:23.1]} 24. g4 {[%clk 0:01:32.9]} 24... Nd6 {[%clk
0:02:20.1]} 25. Nf4 {[%clk 0:01:22.8]} 25... Kf8 {[%clk 0:02:19.4]} 26. Ba3
{[%clk 0:01:17.2]} 26... Bxd4 {[%clk 0:02:09.8]} 27. Rcd1 {[%clk 0:01:15.5]}
27... Bc5 {[%clk 0:02:03.4]} 28. Bxc5 {[%clk 0:01:04.8]} 28... Rxc5 {[%clk
0:02:00.4]} 29. Nd5 {[%clk 0:01:04]} 29... Re8 {[%clk 0:01:55.7]} 30. h4 {[%clk
0:00:57.7]} 30... Rxc4 {[%clk 0:01:50.3]} 31. f3 {[%clk 0:00:50.9]} 31... Rxa4
{[%clk 0:01:47.2]} 32. Rc1 {[%clk 0:00:50.7]} 32... Rd4 {[%clk 0:01:45.8]} 33.
Ne3 {[%clk 0:00:41.5]} 33... h5 {[%clk 0:01:38.4]} 34. Rc7 {[%clk 0:00:38]}
34... hxg4 {[%clk 0:01:38]} 35. fxg4 {[%clk 0:00:36.3]} 35... a5 {[%clk
0:01:37.6]} 36. Rb1 {[%clk 0:00:24.8]} 36... b5 {[%clk 0:01:37.4]} 37. Ra7
{[%clk 0:00:23.9]} 37... a4 {[%clk 0:01:37.3]} 38. Kf3 {[%clk 0:00:23.2]} 38...
Rc8 {[%clk 0:01:28.4]} 39. h5 {[%clk 0:00:19.7]} 39... gxh5 {[%clk 0:01:28]} 40.
gxh5 {[%clk 0:00:20.6]} 40... Rh4 {[%clk 0:01:20.8]} 41. Nd5 {[%clk 0:00:18.6]}
41... Rxh5 {[%clk 0:01:18.3]} 42. Nxe7 {[%clk 0:00:17.7]} 42... Re8 {[%clk
0:01:17.3]} 43. Nc6 {[%clk 0:00:17.5]} 43... Rf5+ {[%clk 0:01:14.2]} 44. Kg4
{[%clk 0:00:17.8]} 44... Re6 {[%clk 0:01:12.1]} 45. Nd4 {[%clk 0:00:17.2]} 45...
Rg6+ {[%clk 0:01:11.8]} 46. Kh4 {[%clk 0:00:16.3]} 46... Rf4+ {[%clk 0:01:11.7]}
47. Kh5 {[%clk 0:00:16]} 47... Rxd4 {[%clk 0:01:11.6]} 48. Rxb5 {[%clk
0:00:14.9]} 48... Rd1 {[%clk 0:01:04.7]} 49. Rba5 {[%clk 0:00:13.2]} 49... Rh1#
{[%clk 0:01:03.5]} 0-1

[Event "Late-Titled-Tuesday-Blitz-December-26-2023"]
[Site "Chess.com"]
[Date "2023.12.26"]
[Round "1"]
[White "AungTZ"]
[Black "kikoveiga"]
[Result "0-1"]
[WhiteElo "2094"]
[BlackElo "2530"]
[TimeControl "180+1"]
[EndTime "14:06:56 PST"]
[Termination "kikoveiga won on time"]

1. e4 {[%clk 0:02:56.6]} 1... g6 {[%clk 0:02:49.5]} 2. d4 {[%clk 0:02:56.2]}
2... Bg7 {[%clk 0:02:50.4]} 3. Nc3 {[%clk 0:02:56.4]} 3... d5 {[%clk 0:02:48]}
4. e5 {[%clk 0:02:56.3]} 4... c5 {[%clk 0:02:46.2]} 5. Nf3 {[%clk 0:02:52.3]}
5... Nc6 {[%clk 0:02:44.5]} 6. Bb5 {[%clk 0:02:48.4]} 6... Bg4 {[%clk
0:02:43.4]} 7. Be3 {[%clk 0:02:44.2]} 7... cxd4 {[%clk 0:02:35.6]} 8. Bxd4
{[%clk 0:02:42.5]} 8... e6 {[%clk 0:02:35.8]} 9. h3 {[%clk 0:02:35.6]} 9... Bxf3
{[%clk 0:02:35]} 10. Qxf3 {[%clk 0:02:34.4]} 10... Ne7 {[%clk 0:02:35.7]} 11.
Qe3 {[%clk 0:01:49.1]} 11... O-O {[%clk 0:02:32.1]} 12. Bxc6 {[%clk 0:01:49]}
12... Nxc6 {[%clk 0:02:30.8]} 13. O-O-O {[%clk 0:01:43.5]} 13... Qh4 {[%clk
0:02:26.8]} 14. f4 {[%clk 0:01:39.4]} 14... Rfc8 {[%clk 0:02:24]} 15. Kb1 {[%clk
0:01:37.2]} 15... Rab8 {[%clk 0:02:13.3]} 16. g3 {[%clk 0:01:36.7]} 16... Qd8
{[%clk 0:02:10.9]} 17. Bc5 {[%clk 0:01:17.8]} 17... b5 {[%clk 0:02:08.8]} 18.
Bd6 {[%clk 0:01:16.5]} 18... Rb6 {[%clk 0:02:08.3]} 19. Ne2 {[%clk 0:01:14.1]}
19... b4 {[%clk 0:01:59.2]} 20. Nd4 {[%clk 0:01:12.8]} 20... Bf8 {[%clk
0:01:58.8]} 21. Bxf8 {[%clk 0:01:09.9]} 21... Qxf8 {[%clk 0:01:59]} 22. g4
{[%clk 0:01:06.1]} 22... Qc5 {[%clk 0:01:55.1]} 23. Rh2 {[%clk 0:00:54.6]} 23...
Na5 {[%clk 0:01:31.4]} 24. Qf2 {[%clk 0:00:42.6]} 24... Nc4 {[%clk 0:01:28.9]}
25. Nb3 {[%clk 0:00:40.8]} 25... Qc7 {[%clk 0:01:22.2]} 26. h4 {[%clk
0:00:27.1]} 26... a5 {[%clk 0:01:19.9]} 27. Nc1 {[%clk 0:00:25.1]} 27... a4
{[%clk 0:01:18.3]} 28. h5 {[%clk 0:00:23.8]} 28... g5 {[%clk 0:00:31.3]} 29.
fxg5 {[%clk 0:00:02.8]} 29... Qxe5 {[%clk 0:00:26]} 0-1

[Event "Late-Titled-Tuesday-Blitz-December-26-2023"]
[Site "Chess.com"]
[Date "2023.12.26"]
[Round "1"]
[White "alertakobra"]
[Black "Didici"]
[Result "0-1"]
[WhiteElo "2446"]
[BlackElo "2788"]
[TimeControl "180+1"]
[EndTime "14:07:05 PST"]
[Termination "Didici won on time"]

1. e4 {[%clk 0:02:59.5]} 1... e5 {[%clk 0:02:59.1]} 2. Nf3 {[%clk 0:02:59]} 2...
Nc6 {[%clk 0:02:59]} 3. Bb5 {[%clk 0:02:55.6]} 3... Bc5 {[%clk 0:02:58.8]} 4. c3
{[%clk 0:02:52.6]} 4... Qf6 {[%clk 0:02:57.8]} 5. O-O {[%clk 0:02:46.5]} 5...
Nge7 {[%clk 0:02:57]} 6. d3 {[%clk 0:02:31.5]} 6... a6 {[%clk 0:02:55.3]} 7. Bg5
{[%clk 0:02:28.6]} 7... Qg6 {[%clk 0:02:51.1]} 8. Ba4 {[%clk 0:02:26.9]} 8... b5
{[%clk 0:02:46.3]} 9. Bc2 {[%clk 0:02:26]} 9... d6 {[%clk 0:02:46.4]} 10. b4
{[%clk 0:02:21.5]} 10... Bb6 {[%clk 0:02:44.4]} 11. a4 {[%clk 0:02:21.8]} 11...
Rb8 {[%clk 0:02:13.8]} 12. Nbd2 {[%clk 0:02:21.5]} 12... Bg4 {[%clk 0:02:07.3]}
13. a5 {[%clk 0:02:11.6]} 13... Ba7 {[%clk 0:01:58.2]} 14. Be3 {[%clk
0:02:11.7]} 14... Bxe3 {[%clk 0:01:56.8]} 15. fxe3 {[%clk 0:02:11.6]} 15... Qh6
{[%clk 0:01:56.6]} 16. Qe2 {[%clk 0:02:05.5]} 16... Nd8 {[%clk 0:01:54.7]} 17.
h3 {[%clk 0:01:59.5]} 17... Bd7 {[%clk 0:01:52.3]} 18. d4 {[%clk 0:01:54.7]}
18... f6 {[%clk 0:01:51.7]} 19. Bb3 {[%clk 0:01:52.2]} 19... Be6 {[%clk
0:01:48.2]} 20. d5 {[%clk 0:01:36.7]} 20... Bd7 {[%clk 0:01:47]} 21. c4 {[%clk
0:01:36.9]} 21... O-O {[%clk 0:01:27.1]} 22. Rab1 {[%clk 0:01:22.2]} 22... f5
{[%clk 0:01:22.1]} 23. c5 {[%clk 0:01:16.2]} 23... Nf7 {[%clk 0:01:02.7]} 24.
Rbd1 {[%clk 0:01:05.2]} 24... fxe4 {[%clk 0:00:56.7]} 25. Nxe4 {[%clk
0:01:01.2]} 25... Nf5 {[%clk 0:00:57.4]} 26. Rfe1 {[%clk 0:00:51.3]} 26... Rbe8
{[%clk 0:00:57.9]} 27. Qf2 {[%clk 0:00:42.4]} 27... Nh8 {[%clk 0:00:57.4]} 28.
Rc1 {[%clk 0:00:38.2]} 28... Ng6 {[%clk 0:00:57.1]} 29. Qe2 {[%clk 0:00:31.1]}
29... Ngh4 {[%clk 0:00:47.2]} 30. Nxh4 {[%clk 0:00:25.5]} 30... Nxh4 {[%clk
0:00:46.7]} 31. Rf1 {[%clk 0:00:20.8]} 31... Qg6 {[%clk 0:00:46.1]} 32. Bc2
{[%clk 0:00:15.2]} 32... Bf5 {[%clk 0:00:36.9]} 33. Rxf5 {[%clk 0:00:08.5]}
33... Nxf5 {[%clk 0:00:28.9]} 34. g4 {[%clk 0:00:07.5]} 34... h5 {[%clk
0:00:28.1]} 35. Qg2 {[%clk 0:00:03.9]} 35... hxg4 {[%clk 0:00:27.2]} 36. hxg4
{[%clk 0:00:01.9]} 36... Nxe3 {[%clk 0:00:27.4]} 0-1

[Event "Late-Titled-Tuesday-Blitz-December-26-2023"]
[Site "Chess.com"]
[Date "2023.12.26"]
[Round "1"]
[White "StellarChess"]
[Black "Pertinhez76"]
[Result "1-0"]
[WhiteElo "2527"]
[BlackElo "2065"]
[TimeControl "180+1"]
[EndTime "14:07:13 PST"]
[Termination "StellarChess won by resignation"]

1. b4 {[%clk 0:03:00.9]} 1... a5 {[%clk 0:02:58.6]} 2. b5 {[%clk 0:03:01]} 2...
c6 {[%clk 0:02:59]} 3. c4 {[%clk 0:02:59]} 3... d5 {[%clk 0:02:48.6]} 4. bxc6
{[%clk 0:02:55.2]} 4... bxc6 {[%clk 0:02:47.8]} 5. cxd5 {[%clk 0:02:54.9]} 5...
cxd5 {[%clk 0:02:43.1]} 6. Nf3 {[%clk 0:02:55.4]} 6... e6 {[%clk 0:02:40.1]} 7.
g3 {[%clk 0:02:55.6]} 7... Nf6 {[%clk 0:02:39.7]} 8. Bg2 {[%clk 0:02:56.1]} 8...
Be7 {[%clk 0:02:30.4]} 9. O-O {[%clk 0:02:56.7]} 9... O-O {[%clk 0:02:29.8]} 10.
Bb2 {[%clk 0:02:57]} 10... Ba6 {[%clk 0:02:27.3]} 11. d3 {[%clk 0:02:56.9]}
11... Nbd7 {[%clk 0:02:17.9]} 12. Nbd2 {[%clk 0:02:56.6]} 12... h6 {[%clk
0:01:52.7]} 13. Nd4 {[%clk 0:02:55.2]} 13... Rc8 {[%clk 0:01:49]} 14. Rc1 {[%clk
0:02:49.4]} 14... Qb6 {[%clk 0:01:48.7]} 15. Ba1 {[%clk 0:02:36.9]} 15... Rfe8
{[%clk 0:01:36.6]} 16. Rb1 {[%clk 0:02:33.5]} 16... Qc7 {[%clk 0:01:32.5]} 17.
h3 {[%clk 0:02:19]} 17... Nf8 {[%clk 0:01:30.9]} 18. Qa4 {[%clk 0:02:10.3]}
18... Ng6 {[%clk 0:01:27]} 19. N2b3 {[%clk 0:02:03.9]} 19... Bb4 {[%clk
0:01:10.4]} 20. a3 {[%clk 0:01:56.2]} 20... Bd6 {[%clk 0:01:03.4]} 21. Nxa5
{[%clk 0:01:44.9]} 21... Ra8 {[%clk 0:01:00.7]} 22. Rfc1 {[%clk 0:01:38.9]}
22... Qe7 {[%clk 0:00:58.9]} 23. Nac6 {[%clk 0:01:33.8]} 23... Qf8 {[%clk
0:00:58.8]} 24. Bb2 {[%clk 0:01:18.5]} 24... Ne5 {[%clk 0:00:57.6]} 25. Nxe5
{[%clk 0:01:13.9]} 25... Bxe5 {[%clk 0:00:58.5]} 26. Qb3 {[%clk 0:01:03.9]}
26... Reb8 {[%clk 0:00:56.9]} 27. Qa2 {[%clk 0:01:01.3]} 27... Bd6 {[%clk
0:00:55.1]} 28. Nc2 {[%clk 0:00:57.2]} 28... Bb5 {[%clk 0:00:53.8]} 29. Bc3
{[%clk 0:00:54.7]} 29... Ba4 {[%clk 0:00:53.6]} 30. Nb4 {[%clk 0:00:50.5]} 30...
Qe8 {[%clk 0:00:48.2]} 31. Qb2 {[%clk 0:00:49.9]} 31... Qd8 {[%clk 0:00:46.6]}
32. e4 {[%clk 0:00:48.6]} 32... Bxb4 {[%clk 0:00:44.8]} 33. axb4 {[%clk
0:00:46.9]} 33... dxe4 {[%clk 0:00:43.5]} 34. dxe4 {[%clk 0:00:47.8]} 34... Nd7
{[%clk 0:00:41.9]} 35. Ra1 {[%clk 0:00:46]} 35... Ra6 {[%clk 0:00:41.4]} 36.
Bxg7 {[%clk 0:00:46.1]} 36... f6 {[%clk 0:00:40.1]} 37. Bxh6 {[%clk 0:00:45.9]}
37... e5 {[%clk 0:00:40.3]} 38. Be3 {[%clk 0:00:45.6]} 38... Qf8 {[%clk
0:00:31.1]} 39. Bf1 {[%clk 0:00:45]} 39... Raa8 {[%clk 0:00:29.6]} 40. Qe2
{[%clk 0:00:44.1]} 40... Rxb4 {[%clk 0:00:27]} 41. Qg4+ {[%clk 0:00:43]} 41...
Qg7 {[%clk 0:00:27.4]} 42. Rc7 {[%clk 0:00:37.9]} 42... Qxg4 {[%clk 0:00:23.7]}
43. hxg4 {[%clk 0:00:38.8]} 43... Rd8 {[%clk 0:00:23.4]} 44. Rc4 {[%clk
0:00:35.1]} 44... Rxc4 {[%clk 0:00:23.2]} 45. Bxc4+ {[%clk 0:00:36]} 45... Kg7
{[%clk 0:00:20.5]} 46. Rxa4 {[%clk 0:00:36.4]} 46... Kg6 {[%clk 0:00:19.6]} 47.
Be6 {[%clk 0:00:36]} 47... Nf8 {[%clk 0:00:19.4]} 48. Bf5+ {[%clk 0:00:36.4]}
48... Kf7 {[%clk 0:00:19.4]} 49. Ra7+ {[%clk 0:00:37]} 49... Ke8 {[%clk
0:00:19.8]} 50. Bc5 {[%clk 0:00:36.1]} 50... Rc8 {[%clk 0:00:19.4]} 51. Bxc8
{[%clk 0:00:33.7]} 51... f5 {[%clk 0:00:18.2]} 52. gxf5 {[%clk 0:00:31.9]} 1-0

[Event "Late-Titled-Tuesday-Blitz-December-26-2023"]
[Site "Chess.com"]
[Date "2023.12.26"]
[Round "1"]
[White "aranibos"]
[Black "VitorBronson"]
[Result "0-1"]
[WhiteElo "2147"]
[BlackElo "2540"]
[TimeControl "180+1"]
[EndTime "14:07:14 PST"]
[Termination "VitorBronson won by resignation"]

1. d4 {[%clk 0:03:00.9]} 1... d5 {[%clk 0:02:54.6]} 2. Nf3 {[%clk 0:03:00.9]}
2... Nf6 {[%clk 0:02:49.4]} 3. Bg5 {[%clk 0:03:00.7]} 3... Ne4 {[%clk
0:02:47.8]} 4. h4 {[%clk 0:02:59.5]} 4... c5 {[%clk 0:02:46.7]} 5. e3 {[%clk
0:02:59.5]} 5... Qb6 {[%clk 0:02:45.9]} 6. Nc3 {[%clk 0:02:51.8]} 6... e6 {[%clk
0:02:38.2]} 7. Nxe4 {[%clk 0:02:31.2]} 7... dxe4 {[%clk 0:02:38.1]} 8. Nd2
{[%clk 0:02:31.3]} 8... cxd4 {[%clk 0:02:35.9]} 9. Nxe4 {[%clk 0:02:31.2]} 9...
dxe3 {[%clk 0:02:34]} 10. Bxe3 {[%clk 0:02:27.3]} 10... Qb4+ {[%clk 0:02:33.4]}
11. Nd2 {[%clk 0:02:22]} 11... Qxb2 {[%clk 0:02:31.5]} 12. Bd3 {[%clk
0:02:16.3]} 12... Be7 {[%clk 0:02:26]} 13. h5 {[%clk 0:02:15.2]} 13... h6 {[%clk
0:02:24]} 14. O-O {[%clk 0:02:15.5]} 14... O-O {[%clk 0:02:23.9]} 15. a4 {[%clk
0:02:14.9]} 15... Nc6 {[%clk 0:02:20.2]} 16. Nc4 {[%clk 0:02:08.9]} 16... Qf6
{[%clk 0:02:17.6]} 17. a5 {[%clk 0:02:01.6]} 17... e5 {[%clk 0:02:15.2]} 18. a6
{[%clk 0:01:56.1]} 18... Rd8 {[%clk 0:02:07.9]} 19. Qe2 {[%clk 0:01:50.8]} 19...
bxa6 {[%clk 0:02:01.2]} 20. Na5 {[%clk 0:01:30]} 20... Nxa5 {[%clk 0:01:44.2]}
21. Rxa5 {[%clk 0:01:30.3]} 21... Bb4 {[%clk 0:01:43.6]} 22. Ra4 {[%clk
0:01:18.8]} 22... a5 {[%clk 0:01:43.6]} 23. Be4 {[%clk 0:01:17.9]} 23... Bd7
{[%clk 0:01:36.3]} 24. Ra2 {[%clk 0:01:12.7]} 24... Bc6 {[%clk 0:01:33.9]} 25.
Bd3 {[%clk 0:00:59.9]} 25... a6 {[%clk 0:01:09.1]} 26. f3 {[%clk 0:00:48.2]}
26... Bb7 {[%clk 0:01:02.4]} 27. Rb1 {[%clk 0:00:42]} 27... Qe7 {[%clk
0:00:56.8]} 28. Kh1 {[%clk 0:00:34.5]} 28... e4 {[%clk 0:00:54.2]} 29. fxe4
{[%clk 0:00:31.8]} 29... Bxe4 {[%clk 0:00:54.1]} 30. Bxa6 {[%clk 0:00:19.9]}
30... Rd6 {[%clk 0:00:34.6]} 31. Bc4 {[%clk 0:00:18.1]} 31... Rc8 {[%clk
0:00:29.7]} 32. Re1 {[%clk 0:00:16.9]} 32... Qb7 {[%clk 0:00:26.3]} 33. Rg1
{[%clk 0:00:15.4]} 33... Qe7 {[%clk 0:00:21.7]} 34. Bf4 {[%clk 0:00:12.4]} 34...
Qh4+ {[%clk 0:00:20]} 35. Bh2 {[%clk 0:00:11.2]} 35... Rdc6 {[%clk 0:00:19.4]}
36. Bb3 {[%clk 0:00:10.6]} 36... Bd6 {[%clk 0:00:19.6]} 37. Bxf7+ {[%clk
0:00:03.7]} 37... Kh8 {[%clk 0:00:19]} 0-1

[Event "Late-Titled-Tuesday-Blitz-December-26-2023"]
[Site "Chess.com"]
[Date "2023.12.26"]
[Round "1"]
[White "PawnStorn"]
[Black "chesspreceptor"]
[Result "0-1"]
[WhiteElo "2331"]
[BlackElo "2641"]
[TimeControl "180+1"]
[EndTime "14:07:23 PST"]
[Termination "chesspreceptor won by resignation"]

1. c4 {[%clk 0:02:59.7]} 1... c5 {[%clk 0:02:57.7]} 2. Nc3 {[%clk 0:02:59.7]}
2... Nf6 {[%clk 0:02:57.4]} 3. g3 {[%clk 0:03:00.1]} 3... g6 {[%clk 0:02:56.1]}
4. Bg2 {[%clk 0:03:00.5]} 4... Bg7 {[%clk 0:02:56.8]} 5. Nf3 {[%clk 0:03:00.7]}
5... Nc6 {[%clk 0:02:57.5]} 6. O-O {[%clk 0:03:01.2]} 6... d6 {[%clk 0:02:56.8]}
7. a3 {[%clk 0:03:01]} 7... O-O {[%clk 0:02:56.3]} 8. Rb1 {[%clk 0:02:59.5]}
8... e5 {[%clk 0:02:53.4]} 9. d3 {[%clk 0:02:58]} 9... Be6 {[%clk 0:02:51.6]}
10. Ng5 {[%clk 0:02:52.6]} 10... Bd7 {[%clk 0:02:37.7]} 11. b4 {[%clk 0:02:50]}
11... h6 {[%clk 0:02:32.7]} 12. Nge4 {[%clk 0:02:49.7]} 12... cxb4 {[%clk
0:02:27]} 13. axb4 {[%clk 0:02:49.2]} 13... Bf5 {[%clk 0:02:22.2]} 14. Nxf6+
{[%clk 0:02:39.7]} 14... Bxf6 {[%clk 0:02:19.5]} 15. b5 {[%clk 0:02:38.6]} 15...
Na5 {[%clk 0:02:18.6]} 16. Bxh6 {[%clk 0:02:34.9]} 16... Re8 {[%clk 0:02:17.4]}
17. Nd5 {[%clk 0:02:21.2]} 17... Bh8 {[%clk 0:02:15.2]} 18. h4 {[%clk
0:02:20.4]} 18... Rc8 {[%clk 0:02:11.7]} 19. e4 {[%clk 0:02:03.7]} 19... Be6
{[%clk 0:02:10]} 20. f4 {[%clk 0:02:02]} 20... Bxd5 {[%clk 0:02:08]} 21. exd5
{[%clk 0:02:01.3]} 21... e4 {[%clk 0:02:05.9]} 22. Bxe4 {[%clk 0:02:00.2]} 22...
Nxc4 {[%clk 0:02:05.1]} 23. Qf3 {[%clk 0:01:26.5]} 23... Nd2 {[%clk 0:02:03]}
24. Qg4 {[%clk 0:01:21]} 24... Bd4+ {[%clk 0:01:34]} 25. Kh1 {[%clk 0:01:15.9]}
25... Qf6 {[%clk 0:01:26.8]} 26. Rbc1 {[%clk 0:00:53.1]} 26... Rxc1 {[%clk
0:00:54.9]} 27. Rxc1 {[%clk 0:00:54]} 27... Nxe4 {[%clk 0:00:54.3]} 28. dxe4
{[%clk 0:00:54.3]} 28... Rxe4 {[%clk 0:00:53.3]} 29. h5 {[%clk 0:00:34]} 29...
Bc5 {[%clk 0:00:46.6]} 30. Bg5 {[%clk 0:00:28.3]} 30... Qb2 {[%clk 0:00:34.7]}
31. Rf1 {[%clk 0:00:11.8]} 31... Qxb5 {[%clk 0:00:29.5]} 32. Qh3 {[%clk
0:00:08.9]} 32... Re3 {[%clk 0:00:11.9]} 33. hxg6 {[%clk 0:00:05.8]} 33... fxg6
{[%clk 0:00:11.1]} 34. Bf6 {[%clk 0:00:04.9]} 34... Kf7 {[%clk 0:00:09.5]} 35.
Qh7+ {[%clk 0:00:03]} 35... Kxf6 {[%clk 0:00:09.6]} 36. Qh8+ {[%clk 0:00:03.5]}
36... Kf5 {[%clk 0:00:08.6]} 37. g4+ {[%clk 0:00:03.8]} 37... Ke4 {[%clk
0:00:08.4]} 38. Qe8+ {[%clk 0:00:03]} 38... Qxe8 {[%clk 0:00:07.9]} 0-1

[Event "Late-Titled-Tuesday-Blitz-December-26-2023"]
[Site "Chess.com"]
[Date "2023.12.26"]
[Round "1"]
[White "lolo9292"]
[Black "Predator0608"]
[Result "0-1"]
[WhiteElo "2197"]
[BlackElo "2549"]
[TimeControl "180+1"]
[EndTime "14:07:24 PST"]
[Termination "Predator0608 won on time"]

1. e4 {[%clk 0:03:00.9]} 1... e6 {[%clk 0:02:54.6]} 2. b3 {[%clk 0:02:59.5]}
2... d5 {[%clk 0:02:55.5]} 3. Bb2 {[%clk 0:02:58.7]} 3... dxe4 {[%clk
0:02:54.9]} 4. Nc3 {[%clk 0:02:57]} 4... Nf6 {[%clk 0:02:54]} 5. Qe2 {[%clk
0:02:55]} 5... Nc6 {[%clk 0:02:49.4]} 6. Nxe4 {[%clk 0:02:54.6]} 6... Nd4 {[%clk
0:02:46.4]} 7. Nxf6+ {[%clk 0:02:51.2]} 7... gxf6 {[%clk 0:02:44.4]} 8. Qd3
{[%clk 0:02:46.5]} 8... c5 {[%clk 0:02:36.1]} 9. Nf3 {[%clk 0:02:44.9]} 9... e5
{[%clk 0:02:26.7]} 10. c3 {[%clk 0:02:38.8]} 10... Nxf3+ {[%clk 0:02:22.2]} 11.
Qxf3 {[%clk 0:02:39.7]} 11... Qd6 {[%clk 0:02:18.4]} 12. Bb5+ {[%clk 0:02:37.6]}
12... Bd7 {[%clk 0:02:05.4]} 13. Bxd7+ {[%clk 0:02:35.3]} 13... Qxd7 {[%clk
0:02:02.5]} 14. Qxf6 {[%clk 0:02:33.8]} 14... Rg8 {[%clk 0:01:59]} 15. Qxe5+
{[%clk 0:02:32.9]} 15... Kd8 {[%clk 0:01:59.2]} 16. g3 {[%clk 0:02:26.1]} 16...
Bd6 {[%clk 0:01:55.6]} 17. Qf6+ {[%clk 0:02:23.7]} 17... Kc7 {[%clk 0:01:52.2]}
18. O-O-O {[%clk 0:02:21.2]} 18... a5 {[%clk 0:01:50]} 19. d4 {[%clk 0:02:19.1]}
19... c4 {[%clk 0:01:44.5]} 20. bxc4 {[%clk 0:02:17.8]} 20... Rg6 {[%clk
0:01:40.7]} 21. Qf3 {[%clk 0:02:14.2]} 21... a4 {[%clk 0:01:40.5]} 22. c5 {[%clk
0:02:13.3]} 22... Be7 {[%clk 0:01:38.6]} 23. Qf4+ {[%clk 0:02:10.9]} 23... Kd8
{[%clk 0:01:33.5]} 24. Kc2 {[%clk 0:02:05.1]} 24... Rf6 {[%clk 0:01:30.5]} 25.
Qe3 {[%clk 0:02:01.6]} 25... Qf5+ {[%clk 0:01:18.9]} 26. Rd3 {[%clk 0:01:51.9]}
26... a3 {[%clk 0:01:14.5]} 27. Bc1 {[%clk 0:01:51.3]} 27... Qd5 {[%clk
0:01:14.8]} 28. Kb1 {[%clk 0:01:44.1]} 28... Qxh1 {[%clk 0:01:13.4]} 29. d5
{[%clk 0:01:39.9]} 29... Qf1 {[%clk 0:01:00.3]} 30. d6 {[%clk 0:01:34.9]} 30...
Bf8 {[%clk 0:00:59.6]} 31. c6 {[%clk 0:01:25.9]} 31... Bxd6 {[%clk 0:00:21.8]}
32. cxb7 {[%clk 0:01:19.4]} 32... Rb8 {[%clk 0:00:20.9]} 33. Qb6+ {[%clk
0:01:12]} 33... Ke7 {[%clk 0:00:21.3]} 34. Rxd6 {[%clk 0:00:39.1]} 34... Rxd6
{[%clk 0:00:21.6]} 35. Qc7+ {[%clk 0:00:39.7]} 35... Ke6 {[%clk 0:00:16.8]} 36.
Qxb8 {[%clk 0:00:40.6]} 36... Qd3+ {[%clk 0:00:13]} 37. Ka1 {[%clk 0:00:39.3]}
37... Qxc3+ {[%clk 0:00:13.9]} 38. Kb1 {[%clk 0:00:39.8]} 38... Rb6+ {[%clk
0:00:14.4]} 0-1